fUSD/lending_fUSD_20240429
["ID","MTS","AMOUNT","RATE_DAILY","PERIOD"]
[324920352,1714420238314,-4457.3,0.00011799,2]
[324920354,1714420238323,-1716.03,0.00011799,2]
[324920356,1714420238332,-500.0,0.00011799,2]
[324920358,1714420238342,-500.0,0.00011799,2]
[324920360,1714420238351,-500.0,0.00011799,2]
[324920362,1714420238360,-500.0,0.00011799,2]
[324920364,1714420238369,-500.0,0.00011799,2]
[324920366,1714420238378,-1663.48,0.00011799,2]
[324920368,1714420238388,-1513.57,0.00011799,2]
[324920370,1714420238397,-4758.25,0.00011799,2]
[324920372,1714420238406,-4316.83,0.00011799,2]
[324920374,1714420238416,-3192.97,0.00011799,2]
[324920376,1714420238425,-3399.67,0.00011799,2]
[324920378,1714420238435,-991.06,0.00011799,2]
[324920380,1714420238444,-35625.07757479,0.000118,2]
[324920382,1714420238453,-193.20629109,0.000118,2]
[324920384,1714420238463,-170.28499597,0.000118,2]
[324920386,1714420238472,-1400.0,0.000118,4]
[324920388,1714420238482,-364.39470848,0.000118,2]
[324920390,1714420238491,-221.44501407,0.000118,2]
[324920392,1714420238500,-1000.0,0.00011804,2]
[324920394,1714420238509,-500.0,0.00011804,2]
[324920396,1714420238519,-1000.0,0.00011804,2]
[324920398,1714420238528,-1000.0,0.00011805,2]
[324920400,1714420238537,-1000.0,0.00011805,2]
[324920402,1714420238546,-1000.0,0.00011805,2]
[324920404,1714420238555,-500.0,0.00011805,2]
[324920406,1714420238565,-500.0,0.00011805,2]
[324920408,1714420238574,-500.0,0.00011812,2]
[324920410,1714420238583,-500.0,0.00011812,2]
[324920412,1714420238593,-500.0,0.00011812,2]
[324920414,1714420238602,-500.0,0.00011812,2]
[324920416,1714420238612,-150.0,0.00011812,2]
[324920418,1714420238621,-500.0,0.00011812,2]
[324920420,1714420238630,-1276.41,0.00011812,2]
[324920422,1714420238639,-500.0,0.00011812,2]
[324920424,1714420238649,-500.0,0.00011812,2]
[324920426,1714420238658,-500.0,0.00011812,2]
[324920428,1714420238668,-500.0,0.00011812,2]
[324920430,1714420238677,-500.0,0.00011812,2]
[324920432,1714420238687,-819.47,0.00011812,2]
[324920434,1714420238696,-791.24,0.00011812,2]
[324920436,1714420238705,-500.0,0.00011812,2]
[324920438,1714420238715,-2200.04,0.00011812,2]
[324920440,1714420238724,-836.98,0.00011812,2]
[324920442,1714420238734,-500.0,0.00011812,2]
[324920444,1714420238743,-500.0,0.00011812,2]
[324920446,1714420238752,-465.8,0.00011812,2]
[324920448,1714420238762,-500.0,0.00011812,2]
[324920450,1714420238771,-151.0,0.00011812,2]
[324920452,1714420238780,-1126.46,0.00011812,2]
[324920454,1714420238789,-151.0,0.00011812,2]
[324920456,1714420238798,-151.0,0.00011812,2]
[324920458,1714420238807,-151.0,0.00011812,2]
[324920460,1714420238818,-774.9,0.00011812,2]
[324920462,1714420238827,-151.0,0.00011812,2]
[324920464,1714420238836,-151.0,0.00011812,2]
[324920466,1714420238845,-151.0,0.00011812,2]
[324920468,1714420238854,-151.0,0.00011812,2]
[324920470,1714420238863,-151.0,0.00011812,2]
[324920472,1714420238872,-154.242716,0.00011812,2]
[324920474,1714420238881,-500.0,0.00011812,2]
[324920476,1714420238890,-2508.83,0.00011812,2]
[324920478,1714420238900,-500.0,0.00011812,2]
[324920480,1714420238909,-498.377238,0.00011812,2]
[324920482,1714420238918,-213.060866,0.00011812,2]
[324920484,1714420238927,-151.0,0.00011812,2]
[324920486,1714420238936,-498.377238,0.00011812,2]
[324920488,1714420238945,-1621.73,0.00011813,2]
[324920490,1714420238955,-1076.68,0.00011813,2]
[324920492,1714420238964,-1230.8,0.00011813,2]
[324920494,1714420238973,-500.0,0.00011813,2]
[324920496,1714420238982,-567.99,0.00011813,2]
[324920498,1714420238991,-3258.51,0.00011813,2]
[324920500,1714420239000,-1606.04,0.00011813,2]
[324920502,1714420239009,-3577.44,0.00011813,2]
[324920504,1714420239018,-1849.25,0.00011813,2]
[324920506,1714420239027,-2331.44,0.00011813,2]
[324920508,1714420239040,-151.0,0.00011813,2]
[324920510,1714420239048,-151.0,0.00011813,2]
[324920512,1714420239057,-1429.516407,0.00011813,2]
[324920514,1714420239066,-1429.516407,0.00011813,2]
[324920515,1714420239075,-508.52,0.00011813,2]
[324920518,1714420239086,-500.0,0.00011813,2]
[324920520,1714420239095,-151.0,0.00011813,2]
[324920522,1714420239104,-1945.12,0.00011813,2]
[324920523,1714420239115,-151.0,0.00011813,2]
[324920525,1714420239125,-151.0,0.00011813,2]
[324920527,1714420239134,-167.327842,0.00011813,2]
[324920529,1714420239143,-500.0,0.00011813,2]
[324920531,1714420239153,-894.602236,0.00011813,2]
[324920533,1714420239162,-167.327842,0.00011813,2]
[324920535,1714420239171,-894.602236,0.00011813,2]
[324920537,1714420239180,-151.0,0.00011813,2]
[324920539,1714420239190,-500.0,0.00011813,2]
[324920541,1714420239199,-617.73,0.00011813,2]
[324920544,1714420239209,-151.0,0.00011813,2]
[324920546,1714420239219,-151.0,0.00011813,2]
[324920547,1714420239229,-202.49951,0.00011813,2]
[324920550,1714420239239,-618.21,0.00011813,2]
[324920552,1714420239250,-202.49951,0.00011813,2]
[324920553,1714420239262,-1565.994674,0.00011813,2]
[324920556,1714420239271,-1565.994674,0.00011813,2]
[324920557,1714420239280,-1001.76,0.00011813,2]
[324920560,1714420239289,-1117.64,0.00011813,2]
[324920562,1714420239299,-983.58,0.00011813,2]
[324920564,1714420239308,-4662.57,0.00011813,2]
[324920566,1714420239317,-3674.84,0.00011813,2]
[324920568,1714420239327,-299.580981,0.00011814,2]
[324920570,1714420239336,-500.0,0.00011814,2]
[324920572,1714420239345,-500.0,0.00011814,2]
[324920574,1714420239354,-500.0,0.00011814,2]
[324920576,1714420239363,-151.0,0.00011814,2]
[324920578,1714420239372,-500.0,0.00011814,2]
[324920580,1714420239381,-618.86,0.00011814,2]
[324920582,1714420239390,-500.0,0.00011814,2]
[324920583,1714420239399,-151.0,0.00011814,2]
[324920585,1714420239408,-274.03311407,0.00011814,2]
[324920588,1714420239417,-151.0,0.00011814,2]
[324920590,1714420239427,-500.0,0.00011814,2]
[324920592,1714420239436,-151.0,0.00011814,2]
[324920593,1714420239445,-500.0,0.00011814,2]
[324920595,1714420239454,-151.0,0.00011814,2]
[324920597,1714420239464,-500.0,0.00011814,2]
[324920600,1714420239473,-151.0,0.00011814,2]
[324920602,1714420239482,-500.0,0.00011814,2]
[324920604,1714420239492,-151.0,0.00011814,2]
[324920606,1714420239501,-151.0,0.00011814,2]
[324920608,1714420239510,-500.0,0.00011814,2]
[324920610,1714420239519,-151.0,0.00011814,2]
[324920612,1714420239528,-170.258817,0.00011814,2]
[324920614,1714420239537,-500.0,0.00011814,2]
[324920616,1714420239546,-151.0,0.00011814,2]
[324920618,1714420239555,-500.0,0.00011814,2]
[324920620,1714420239564,-264.120716,0.00011814,2]
[324920622,1714420239574,-151.0,0.00011814,2]
[324920623,1714420239583,-264.120716,0.00011814,2]
[324920625,1714420239592,-500.0,0.00011814,2]
[324920628,1714420239602,-500.0,0.00011814,2]
[324920629,1714420239611,-151.0,0.00011814,2]
[324920631,1714420239621,-227.789299,0.00011814,2]
[324920633,1714420239630,-500.0,0.00011814,2]
[324920635,1714420239639,-227.789299,0.00011814,2]
[324920637,1714420239648,-151.0,0.00011814,2]
[324920639,1714420239657,-227.089993,0.00011814,2]
[324920641,1714420239666,-233.575209,0.00011814,2]
[324920643,1714420239676,-500.0,0.00011814,2]
[324920645,1714420239685,-500.0,0.00011814,2]
[324920647,1714420239694,-198.0,0.00011814,2]
[324920649,1714420239703,-248.008135,0.00011814,2]
[324920651,1714420239713,-248.008135,0.00011814,2]
[324920653,1714420239722,-159.368629,0.00011814,2]
[324920655,1714420239731,-500.0,0.00011814,2]
[324920657,1714420239741,-502.9,0.00011814,2]
[324920659,1714420239750,-209.01,0.00011814,2]
[324920661,1714420239760,-500.0,0.00011814,2]
[324920663,1714420239769,-500.0,0.00011814,2]
[324920665,1714420239779,-500.0,0.00011814,2]
[324920667,1714420239789,-500.0,0.00011814,2]
[324920669,1714420239798,-500.0,0.00011814,2]
[324920671,1714420239807,-500.0,0.00011814,2]
[324920673,1714420239815,-151.0,0.00011814,2]
[324920675,1714420239823,-500.0,0.00011814,2]
[324920677,1714420239832,-151.938083,0.00011814,2]
[324920679,1714420239841,-169.465919,0.00011814,2]
[324920681,1714420239850,-169.465919,0.00011814,2]
[324920683,1714420239859,-500.0,0.00011814,2]
[324920685,1714420239867,-165.237824,0.00011814,2]
[324920687,1714420239876,-500.0,0.00011814,2]
[324920689,1714420239886,-151.0,0.00011814,2]
[324920691,1714420239895,-500.0,0.00011814,2]
[324920693,1714420239904,-202.348431,0.00011814,2]
[324920701,1714420240086,-500.0,0.00011814,2]
[324920704,1714420240096,-188.290649,0.00011814,2]
[324920706,1714420240104,-188.290649,0.00011814,2]
[324920708,1714420240112,-151.0,0.00011814,2]
[324920710,1714420240120,-151.0,0.00011814,2]
[324920712,1714420240129,-223.073717,0.00011814,2]
[324920714,1714420240138,-167.745013,0.00011814,2]
[324920716,1714420240145,-223.073717,0.00011814,2]
[324920717,1714420240152,-167.745013,0.00011814,2]
[324920719,1714420240158,-151.0,0.00011814,2]
[324920721,1714420240166,-413.91913766,0.00011814,2]
[324920723,1714420240173,-193.20629107,0.00011825,2]
[324920725,1714420240180,-193.20629107,0.0001185,2]
[324920727,1714420240188,-10000.0,0.00011873,2]
[324920729,1714420240195,-151.0,0.00011873,2]
[324920731,1714420240201,-151.0,0.00011873,2]
[324920733,1714420240210,-193.985033,0.00011873,2]
[324920734,1714420240217,-167.327842,0.00011873,2]
[324920736,1714420240225,-894.602236,0.00011873,2]
[324920738,1714420240233,-167.327842,0.00011873,2]
[324920740,1714420240241,-894.602236,0.00011873,2]
[324920742,1714420240248,-151.0,0.00011873,2]
[324920745,1714420240257,-151.0,0.00011873,2]
[324920747,1714420240265,-151.0,0.00011873,2]
[324920749,1714420240272,-151.0,0.00011873,2]
[324920750,1714420240279,-202.49951,0.00011873,2]
[324920752,1714420240286,-151.0,0.00011873,2]
[324920754,1714420240293,-202.49951,0.00011873,2]
[324920756,1714420240301,-151.0,0.00011873,2]
[324920758,1714420240307,-1565.994674,0.00011873,2]
[324920760,1714420240313,-1565.994674,0.00011873,2]
[324920762,1714420240322,-151.0,0.00011873,2]
[324920764,1714420240329,-151.0,0.00011873,2]
[324920765,1714420240336,-253.620327,0.00011873,2]
[324920767,1714420240343,-151.0,0.00011873,2]
[324920770,1714420240351,-151.0,0.00011873,2]
[324920772,1714420240359,-498.377238,0.00011873,2]
[324920774,1714420240366,-151.0,0.00011873,2]
[324920776,1714420240375,-498.377238,0.00011873,2]
[324920778,1714420240383,-193.20629107,0.00011875,2]
[324920780,1714420240392,-487.0902808,0.0001189,2]
[324920782,1714420240399,-204.69428143,0.0001189,2]
[324920784,1714420240407,-151.0,0.00011898,2]
[324920786,1714420240414,-604.418982,0.00011898,2]
[324920787,1714420240420,-604.418982,0.00011898,2]
[324920789,1714420240428,-212.40721,0.00011898,2]
[324920791,1714420240436,-151.0,0.00011898,2]
[324920794,1714420240444,-151.0,0.00011898,2]
[324920796,1714420240453,-500.0,0.00011898,2]
[324920798,1714420240461,-1429.516407,0.00011898,2]
[324920799,1714420240468,-1429.516407,0.00011898,2]
[324920801,1714420240475,-1207.14,0.00011898,2]
[324920803,1714420240483,-4874.15,0.00011898,2]
[324920805,1714420240490,-500.0,0.00011898,2]
[324920807,1714420240498,-500.0,0.00011898,2]
[324920809,1714420240505,-500.0,0.00011898,2]
[324920811,1714420240513,-500.0,0.00011898,2]
[324920813,1714420240522,-255.4068364,0.00011899,2]
[324920815,1714420240530,-155.0,0.00011899,2]
[324920818,1714420240538,-210.69791505,0.00011899,2]
[324920819,1714420240545,-157.31721309,0.00011899,2]
[324920822,1714420240553,-323.99205487,0.00011899,2]
[324920823,1714420240561,-2360.978722,0.00011899,2]
[324920825,1714420240568,-2180.57537937,0.00011899,2]
[324920827,1714420240576,-155.0,0.00011899,2]
[324920829,1714420240583,-262.25935508,0.00011899,2]
[324920831,1714420240591,-155.0,0.00011899,2]
[324920834,1714420240599,-325.32875202,0.00011899,2]
[324920835,1714420240606,-155.42136564,0.00011899,2]
[324920837,1714420240614,-155.0,0.00011899,2]
[324920839,1714420240621,-155.0,0.00011899,2]
[324920841,1714420240630,-155.0,0.00011899,2]
[324920843,1714420240637,-156.12426566,0.00011899,2]
[324920845,1714420240644,-264.87587186,0.00011899,2]
[324920847,1714420240653,-206.86184835,0.00011899,2]
[324920850,1714420240662,-1809.3817027,0.00011899,2]
[324920852,1714420240669,-155.0,0.00011899,2]
[324920854,1714420240677,-358.19314831,0.00011899,2]
[324920856,1714420240685,-333.63645202,0.00011899,2]
[324920857,1714420240692,-155.78447429,0.00011899,2]
[324920859,1714420240699,-5836.18871029,0.00011899,2]
[324920861,1714420240706,-155.16352534,0.00011899,2]
[324920863,1714420240713,-5097.66971521,0.00011899,2]
[324920865,1714420240722,-155.0,0.00011899,2]
[324920867,1714420240731,-513.87,0.00011899,2]
[324920869,1714420240738,-155.68785924,0.00011899,2]
[324920871,1714420240746,-155.11905648,0.00011899,2]
[324920873,1714420240754,-1528.36912575,0.00011899,2]
[324920875,1714420240762,-233.549695,0.00011899,2]
[324920877,1714420240769,-184.992833,0.00011899,2]
[324920879,1714420240777,-151.0,0.00011899,2]
[324920881,1714420240785,-151.0,0.00011899,2]
[324920883,1714420240793,-151.0,0.00011899,2]
[324920885,1714420240800,-151.0,0.00011899,2]
[324920887,1714420240808,-151.0,0.00011899,2]
[324920889,1714420240816,-151.0,0.00011899,2]
[324920892,1714420240824,-151.0,0.00011899,2]
[324920893,1714420240832,-151.0,0.00011899,2]
[324920896,1714420240840,-264.120716,0.00011899,2]
[324920898,1714420240847,-151.0,0.00011899,2]
[324920900,1714420240856,-264.120716,0.00011899,2]
[324920901,1714420240863,-151.0,0.00011899,2]
[324920903,1714420240870,-227.789299,0.00011899,2]
[324920906,1714420240878,-227.789299,0.00011899,2]
[324920908,1714420240886,-151.0,0.00011899,2]
[324920910,1714420240894,-248.008135,0.00011899,2]
[324920912,1714420240901,-248.008135,0.00011899,2]
[324920913,1714420240908,-151.0,0.00011899,2]
[324920915,1714420240915,-151.0,0.00011899,2]
[324920918,1714420240924,-208.745052,0.00011899,2]
[324920919,1714420240931,-151.0,0.00011899,2]
[324920921,1714420240938,-169.465919,0.00011899,2]
[324920923,1714420240945,-169.465919,0.00011899,2]
[324920925,1714420240953,-151.0,0.00011899,2]
[324920927,1714420240961,-188.290649,0.00011899,2]
[324920929,1714420240969,-188.290649,0.00011899,2]
[324920931,1714420240975,-277.149944,0.00011899,2]
[324920933,1714420240984,-151.0,0.00011899,2]
[324920936,1714420240993,-223.073717,0.00011899,2]
[324920938,1714420241001,-167.745013,0.00011899,2]
[324920940,1714420241008,-223.073717,0.00011899,2]
[324920942,1714420241015,-167.745013,0.00011899,2]
[324920944,1714420241023,-191.81259505,0.00011899,2]
[324920946,1714420241031,-266.91,0.00011899,2]
[324920948,1714420241042,-651.0,0.000119,2]
[324920950,1714420241050,-599775.26582867,0.000119,2]
[324920955,1714420241082,-648.501957,0.000119,2]
[324920958,1714420241091,-275.697,0.000119,2]
[324920960,1714420241100,-948.42188954,0.000119,2]
[324920962,1714420241111,-808.68581643,0.000119,2]
[324920964,1714420241123,-5229.91822251,0.000119,2]
[324920989,1714420241341,-500.0,0.00011799,2]
[324920991,1714420241350,-971.03897232,0.000119,2]
[324920993,1714420241361,-806.34500001,0.000119,2]
[324920995,1714420241372,-80150.75951464,0.000119,2]
[324921000,1714420241414,-439347.15679455,0.000119,2]
[324921001,1714420241424,-8767.78463079,0.000119,2]
[324921002,1714420241433,-10000.0,0.000119,2]
[324921003,1714420241443,-1000.0,0.000119,2]
[324921004,1714420241452,-151.686946,0.000119,2]
[324921005,1714420241463,-151.0,0.000119,2]
[324921006,1714420241472,-173.631409,0.000119,2]
[324921007,1714420241480,-173.631409,0.000119,2]
[324921008,1714420241490,-35625.07757479,0.000119,2]
[324921009,1714420241499,-151.0,0.000119,2]
[324921010,1714420241508,-604.418982,0.000119,2]
[324921011,1714420241517,-604.418982,0.000119,2]
[324921012,1714420241526,-151.0,0.000119,2]
[324921013,1714420241535,-151.0,0.000119,2]
[324921014,1714420241544,-151.0,0.000119,2]
[324921015,1714420241554,-151.0,0.000119,2]
[324921016,1714420241564,-264.89633,0.000119,2]
[324921017,1714420241573,-217.058024,0.000119,2]
[324921018,1714420241582,-151.0,0.000119,2]
[324921019,1714420241591,-151.0,0.000119,2]
[324921020,1714420241601,-264.120716,0.000119,2]
[324921021,1714420241610,-264.120716,0.000119,2]
[324921022,1714420241619,-203.57311,0.000119,2]
[324921023,1714420241627,-151.0,0.000119,2]
[324921024,1714420241637,-227.789299,0.000119,2]
[324921025,1714420241646,-227.789299,0.000119,2]
[324921026,1714420241655,-151.0,0.000119,2]
[324921027,1714420241665,-248.008135,0.000119,2]
[324921028,1714420241674,-248.008135,0.000119,2]
[324921029,1714420241683,-244.151537,0.000119,2]
[324921030,1714420241693,-193.20629107,0.000119,2]
[324921031,1714420241702,-151.0,0.000119,2]
[324921032,1714420241711,-151.0,0.000119,2]
[324921033,1714420241721,-169.465919,0.000119,2]
[324921034,1714420241730,-169.465919,0.000119,2]
[324921035,1714420241740,-151.0,0.000119,2]
[324921036,1714420241749,-1340.64455,0.000119,2]
[324921037,1714420241758,-188.290649,0.000119,2]
[324921038,1714420241767,-188.290649,0.000119,2]
[324921039,1714420241777,-151.0,0.000119,2]
[324921040,1714420241787,-223.073717,0.000119,2]
[324921041,1714420241796,-167.745013,0.000119,2]
[324921042,1714420241805,-223.073717,0.000119,2]
[324921043,1714420241814,-167.745013,0.000119,2]
[324921044,1714420241823,-200.0,0.000119,4]
[324921045,1714420241832,-151.0,0.000119,2]
[324921046,1714420241842,-151.0,0.000119,2]
[324921047,1714420241851,-1429.516407,0.000119,2]
[324921048,1714420241861,-1429.516407,0.000119,2]
[324921049,1714420241870,-151.0,0.000119,2]
[324921050,1714420241879,-151.0,0.000119,2]
[324921051,1714420241888,-167.327842,0.000119,2]
[324921052,1714420241897,-894.602236,0.000119,2]
[324921053,1714420241907,-167.327842,0.000119,2]
[324921055,1714420241916,-1466.19619803,0.000119,2]
[324921056,1714420241925,-894.602236,0.000119,2]
[324921057,1714420241934,-170.898496,0.000119,2]
[324921058,1714420241943,-151.0,0.000119,2]
[324921059,1714420241952,-151.0,0.000119,2]
[324921060,1714420241962,-151.0,0.000119,2]
[324921061,1714420241971,-202.49951,0.000119,2]
[324921062,1714420241980,-151.0,0.000119,2]
[324921063,1714420241989,-449.20547232,0.000119,2]
[324921064,1714420241998,-151.0,0.000119,2]
[324921065,1714420242007,-202.49951,0.000119,2]
[324921066,1714420242017,-151.0,0.000119,2]
[324921067,1714420242027,-1565.994674,0.000119,2]
[324921068,1714420242038,-1565.994674,0.000119,2]
[324921069,1714420242048,-151.0,0.000119,2]
[324921070,1714420242057,-188.1428878,0.000119,2]
[324921071,1714420242067,-151.0,0.000119,2]
[324921072,1714420242076,-151.0,0.000119,2]
[324921073,1714420242087,-151.0,0.000119,2]
[324921074,1714420242096,-498.377238,0.000119,2]
[324921075,1714420242105,-151.0,0.000119,2]
[324921076,1714420242118,-498.377238,0.000119,2]
[324921077,1714420242128,-3800.74391964,0.000119,2]
[324921078,1714420242137,-504.8181138,0.00011992,2]
[324921079,1714420242146,-522.5459468,0.00011992,2]
[324921080,1714420242155,-540.2737799,0.00011992,2]
[324921081,1714420242165,-2000.0,0.00011999,2]
[324921082,1714420242174,-4365727.6,0.00012,2]
[324921083,1714420242183,-611.35781403,0.00012,2]
[324921084,1714420242193,-1058.33476278,0.00012,2]
[324921085,1714420242202,-15001.17923307,0.00012,2]
[324921086,1714420242213,-5000.0,0.00012,2]
[324921087,1714420242222,-11419.27646872,0.00012,2]
[324921088,1714420242231,-366.98897292,0.00012,2]
[324921089,1714420242241,-409.2085642,0.00012,2]
[324921090,1714420242250,-209.8539926,0.00012,2]
[324921091,1714420242259,-151.0,0.00012,2]
[324921092,1714420242268,-173.631409,0.00012,2]
[324921093,1714420242277,-173.631409,0.00012,2]
[324921094,1714420242286,-500.0,0.00012,2]
[324921095,1714420242296,-35625.07757479,0.00012,2]
[324921096,1714420242305,-151.0,0.00012,2]
[324921097,1714420242314,-604.418982,0.00012,2]
[324921098,1714420242323,-604.418982,0.00012,2]
[324921099,1714420242332,-151.0,0.00012,2]
[324921100,1714420242342,-151.0,0.00012,2]
[324921101,1714420242351,-151.0,0.00012,2]
[324921102,1714420242360,-151.0,0.00012,2]
[324921103,1714420242370,-151.0,0.00012,2]
[324921104,1714420242379,-151.0,0.00012,2]
[324921105,1714420242388,-151.0,0.00012,2]
[324921107,1714420242398,-151.0,0.00012,2]
[324921109,1714420242408,-151.0,0.00012,2]
[324921111,1714420242417,-151.0,0.00012,2]
[324921112,1714420242426,-264.120716,0.00012,2]
[324921114,1714420242435,-264.120716,0.00012,2]
[324921116,1714420242444,-264.120716,0.00012,2]
[324921118,1714420242454,-264.120716,0.00012,2]
[324921120,1714420242463,-151.0,0.00012,2]
[324921122,1714420242472,-151.0,0.00012,2]
[324921125,1714420242481,-227.789299,0.00012,2]
[324921128,1714420242490,-227.789299,0.00012,2]
[324921130,1714420242499,-227.789299,0.00012,2]
[324921132,1714420242509,-227.789299,0.00012,2]
[324921134,1714420242518,-151.0,0.00012,2]
[324921135,1714420242527,-151.0,0.00012,2]
[324921136,1714420242536,-248.008135,0.00012,2]
[324921137,1714420242545,-248.008135,0.00012,2]
[324921138,1714420242554,-248.008135,0.00012,2]
[324921139,1714420242563,-248.008135,0.00012,2]
[324921140,1714420242572,-151.0,0.00012,2]
[324921141,1714420242581,-151.0,0.00012,2]
[324921143,1714420242591,-162.74296,0.00012,2]
[324921144,1714420242600,-169.465919,0.00012,2]
[324921145,1714420242609,-169.465919,0.00012,2]
[324921146,1714420242618,-169.465919,0.00012,2]
[324921147,1714420242627,-169.465919,0.00012,2]
[324921148,1714420242636,-272.40114,0.00012,2]
[324921149,1714420242646,-1000.0,0.00012,2]
[324921150,1714420242655,-1000.0,0.00012,2]
[324921151,1714420242664,-188.290649,0.00012,2]
[324921152,1714420242674,-188.290649,0.00012,2]
[324921153,1714420242683,-188.290649,0.00012,2]
[324921154,1714420242692,-188.290649,0.00012,2]
[324921155,1714420242701,-151.0,0.00012,2]
[324921156,1714420242710,-151.0,0.00012,2]
[324921157,1714420242719,-223.073717,0.00012,2]
[324921158,1714420242728,-223.073717,0.00012,2]
[324921159,1714420242737,-167.745013,0.00012,2]
[324921160,1714420242746,-167.745013,0.00012,2]
[324921161,1714420242755,-223.073717,0.00012,2]
[324921162,1714420242764,-223.073717,0.00012,2]
[324921163,1714420242774,-167.745013,0.00012,2]
[324921164,1714420242783,-167.745013,0.00012,2]
[324921165,1714420242792,-151.0,0.00012,2]
[324921166,1714420242802,-151.0,0.00012,2]
[324921167,1714420242811,-151.0,0.00012,2]
[324921168,1714420242820,-151.0,0.00012,2]
[324921169,1714420242829,-1429.516407,0.00012,2]
[324921170,1714420242838,-1429.516407,0.00012,2]
[324921171,1714420242847,-1429.516407,0.00012,2]
[324921172,1714420242856,-1429.516407,0.00012,2]
[324921173,1714420242865,-151.0,0.00012,2]
[324921174,1714420242874,-151.0,0.00012,2]
[324921175,1714420242884,-203.208555,0.00012,2]
[324921176,1714420242893,-167.327842,0.00012,2]
[324921177,1714420242902,-167.327842,0.00012,2]
[324921178,1714420242912,-894.602236,0.00012,2]
[324921180,1714420242920,-894.602236,0.00012,2]
[324921181,1714420242929,-167.327842,0.00012,2]
[324921182,1714420242938,-167.327842,0.00012,2]
[324921183,1714420242948,-894.602236,0.00012,2]
[324921184,1714420242957,-894.602236,0.00012,2]
[324921185,1714420242967,-151.0,0.00012,2]
[324921186,1714420242977,-151.0,0.00012,2]
[324921187,1714420242986,-151.0,0.00012,2]
[324921188,1714420242994,-156.739494,0.00012,2]
[324921189,1714420243004,-151.0,0.00012,2]
[324921190,1714420243013,-202.49951,0.00012,2]
[324921191,1714420243023,-202.49951,0.00012,2]
[324921192,1714420243033,-151.0,0.00012,2]
[324921193,1714420243046,-151.0,0.00012,2]
[324921194,1714420243056,-186.008592,0.00012,2]
[324921195,1714420243065,-202.49951,0.00012,2]
[324921197,1714420243075,-202.49951,0.00012,2]
[324921199,1714420243085,-151.0,0.00012,2]
[324921201,1714420243094,-1565.994674,0.00012,2]
[324921203,1714420243103,-151.0,0.00012,2]
[324921205,1714420243112,-1565.994674,0.00012,2]
[324921206,1714420243122,-1565.994674,0.00012,2]
[324921207,1714420243131,-1565.994674,0.00012,2]
[324921208,1714420243142,-151.0,0.00012,2]
[324921209,1714420243151,-151.0,0.00012,2]
[324921210,1714420243161,-151.0,0.00012,2]
[324921211,1714420243170,-151.0,0.00012,2]
[324921212,1714420243179,-151.0,0.00012,2]
[324921213,1714420243188,-151.0,0.00012,2]
[324921214,1714420243197,-151.0,0.00012,2]
[324921215,1714420243207,-151.0,0.00012,2]